bitfinex/quotes_ETHUSD_20250126
["timestamp","ask_amount","ask_price","bid_price","bid_amount"]
[1737924082604,5.99409,3336.7,3336.3,0.08345933]
[1737924083100,2.99704,3336.7,3336.3,0.08345933]
[1737924083402,2.99706,3336.6,3336.3,0.08345933]
[1737924084998,2.99721,3336.5,3336.3,0.08345933]
[1737924087271,2.99724,3336.4,3336.3,0.08345933]
[1737924087705,2.99747,3336.2,3335.9,0.7931]
[1737924088080,2.99747,3336.2,3336.0,0.08308229]
[1737924097316,2.99747,3336.2,3335.7,0.7774]
[1737924097515,3.80756,3336.0,3335.4,0.7774]
[1737924097722,3.80756,3336.0,3335.4,3.77552]
[1737924098122,2.99778,3335.8,3335.1,0.7774]
[1737924098338,3.80792,3335.6,3335.1,0.7774]
[1737924098642,2.9982,3335.4,3335.1,0.7774]
[1737924098808,3.80792,3335.6,3335.1,0.7774]
[1737924100098,0.680499,3336.0,3335.1,0.8073827]
[1737924100099,2.99762,3336.0,3335.1,0.8073827]
[1737924100305,2.99762,3336.0,3335.5,0.7774]
[1737924101323,2.99744,3336.2,3335.5,3.77539]
[1737924101625,2.99744,3336.2,3335.5,0.7774]
[1737924101922,2.99744,3336.2,3335.6,2.99794]
[1737924103235,2.99752,3336.1,3335.5,0.7774]
[1737924104608,2.99752,3336.1,3335.6,0.08066578]
[1737924105056,2.99752,3336.1,3335.7,0.7763]
[1737924105742,2.99752,3336.1,3335.8,0.08066578]
[1737924107743,2.99727,3336.4,3335.8,0.08066578]
[1737924107909,2.9974,3336.3,3335.8,0.08066578]
[1737924108553,2.99727,3336.4,3335.8,0.08066578]
[1737924108846,2.99742,3336.2,3335.8,0.08066578]
[1737924111938,2.99752,3336.1,3335.8,0.08066578]
[1737924123444,2.99742,3336.2,3335.8,0.08066578]
[1737924123636,2.99769,3335.9,3335.8,0.08066578]
[1737924123851,2.99788,3335.7,3335.4,0.8011]
[1737924124067,2.99788,3335.7,3335.5,0.08024288]
[1737924125961,2.99769,3335.9,3335.5,0.08024288]
[1737924125962,2.99779,3335.8,3335.5,0.08024288]
[1737924127072,2.99769,3335.9,3335.5,0.08024288]
[1737924127073,2.99788,3335.7,3335.5,0.08024288]
[1737924128370,2.99769,3335.9,3335.5,0.08024288]
[1737924128570,2.9978,3335.8,3335.5,0.08024288]
[1737924130086,2.99795,3335.7,3335.5,0.08024288]
[1737924130518,2.99801,3335.6,3335.2,0.8216]
[1737924132392,2.99813,3335.5,3335.1,5.31]
[1737924132586,2.99813,3335.5,3334.8,3.82026]
[1737924132786,2.99813,3335.5,3334.9,2.99853]
[1737924134487,2.99813,3335.5,3334.9,3.680409]
[1737924134823,2.99813,3335.5,3335.0,0.07547153]
[1737924135397,2.99833,3335.2,3335.0,0.07547153]
[1737924135804,2.99833,3335.2,3334.8,0.8216]
[1737924136510,2.99833,3335.2,3334.9,0.07547153]
[1737924136904,2.99833,3335.2,3334.8,0.8216]
[1737924137133,2.99833,3335.2,3335.0,0.07547153]
[1737924137297,2.99833,3335.2,3334.8,0.8216]
[1737924137503,2.99833,3335.2,3335.1,0.07547153]
[1737924137717,2.99833,3335.2,3334.8,0.8216]
[1737924137912,0.7973,3335.3,3335.1,0.07547153]
[1737924138116,2.99856,3335.0,3334.3,0.8216]
[1737924138326,2.99869,3334.8,3334.3,0.8216]
[1737924138645,2.99869,3334.8,3334.3,3.8207]
[1737924139600,5.99713,3335.0,3334.3,3.8207]
[1737924139903,2.99856,3335.0,3334.3,3.8207]
[1737924140229,2.99856,3335.0,3334.3,4.502698]
[1737924140848,2.99859,3334.9,3334.3,4.502698]
[1737924149693,2.99859,3334.9,3334.4,0.07095905]
[1737924152755,2.99856,3335.0,3334.4,0.07095905]
[1737924152953,2.9987,3334.8,3334.4,0.07095905]
[1737924157465,2.9982,3335.4,3334.5,0.7579]
[1737924157758,2.9982,3335.4,3334.9,0.7579]
[1737924158494,2.9982,3335.4,3335.0,0.06648877]
[1737924160591,9.0568,3336.0,3335.1,0.7579]
[1737924160791,2.9979,3335.7,3335.1,2.99833]
[1737924160993,2.9979,3335.7,3335.2,0.82431717]
[1737924161562,2.99769,3335.9,3335.2,0.82431717]
[1737924161890,2.99769,3335.9,3335.3,2.99822]
[1737924162094,2.99769,3335.9,3335.4,0.06629442]
[1737924162955,2.99778,3335.8,3335.4,0.06629442]
[1737924165511,2.99754,3336.1,3335.5,0.8141]
[1737924165719,2.99754,3336.1,3335.5,3.81213]
[1737924166067,2.99754,3336.1,3335.6,0.06589552]
[1737924168722,2.99766,3336.0,3335.6,0.06589552]
[1737924174793,2.99787,3335.7,3335.6,0.06589552]
[1737924174987,3.675225,3335.7,3335.6,0.06589552]
[1737924175310,2.9981,3335.5,3335.1,5.31]
[1737924175721,2.99816,3335.4,3335.1,5.31]
[1737924175915,2.99816,3335.4,3334.9,0.8268]
[1737924179725,2.99816,3335.4,3335.0,0.06596199]
[1737924180827,2.99838,3335.2,3335.0,0.06596199]
[1737924181126,2.99838,3335.2,3334.6,3.8268]
[1737924181322,2.99838,3335.2,3335.1,0.06597222]
[1737924181523,3.67583,3335.2,3334.6,3.8268]
[1737924181716,2.99842,3335.1,3334.6,3.8268]
[1737924182033,2.99842,3335.1,3334.7,0.06597733]
[1737924186107,0.8184,3335.0,3334.7,0.06597733]
[1737924188643,0.7713,3335.2,3334.7,0.06597733]
[1737924190651,3.76966,3335.2,3334.7,0.06597733]
[1737924203373,0.7713,3335.2,3334.7,0.06597733]
[1737924203678,2.99841,3335.1,3334.7,0.06597733]
[1737924204321,2.99841,3335.1,3334.4,2.99903]
[1737924204525,2.99841,3335.1,3334.5,0.06309385]
[1737924204740,5.9969,3335.1,3334.5,0.06309385]
[1737924205380,0.67682,3335.1,3334.5,0.06309385]
[1737924205557,2.99874,3334.8,3334.5,0.06309385]
[1737924205873,2.99874,3334.8,3334.3,0.7887]
[1737924206335,2.99878,3334.7,3334.4,0.06316532]
[1737924207372,2.99895,3334.5,3334.4,0.06316532]
[1737924207862,2.99895,3334.5,3334.1,5.31]
[1737924208065,2.99895,3334.5,3334.4,0.06326744]
[1737924208264,2.99895,3334.5,3334.1,5.31]
[1737924208764,2.99895,3334.5,3334.2,0.06326744]
[1737924210464,2.99895,3334.5,3334.0,0.7615]
[1737924210663,2.99895,3334.5,3334.3,0.06326744]
[1737924210866,2.99895,3334.5,3334.0,3.76088]
[1737924211067,2.99895,3334.5,3334.4,0.06326744]
[1737924211550,2.99895,3334.5,3334.0,0.7615]
[1737924211781,2.99895,3334.5,3334.4,0.06326744]
[1737924211952,2.99895,3334.5,3334.0,0.7615]
[1737924212153,2.99895,3334.5,3334.4,0.06326744]
[1737924212339,2.99895,3334.5,3334.0,0.7615]
[1737924212540,2.99895,3334.5,3334.1,0.06326744]
[1737924213170,2.99877,3334.7,3334.2,2.9992]
[1737924213357,2.99877,3334.7,3334.1,0.06326744]
[1737924213684,2.99877,3334.7,3334.0,3.76084]
[1737924213884,2.99877,3334.7,3334.2,0.06326744]
[1737924214039,2.99877,3334.7,3334.0,3.76084]
[1737924214235,2.99877,3334.7,3334.3,0.06326744]
[1737924214465,2.99877,3334.7,3334.0,3.76083]
[1737924214676,2.99877,3334.7,3334.4,0.06326744]
[1737924214873,3.741881,3334.7,3334.1,2.9993]
[1737924215034,2.99877,3334.7,3334.5,0.06326744]
[1737924215243,2.99877,3334.7,3334.1,2.9993]
[1737924215443,2.99877,3334.7,3334.6,0.06273744]
[1737924215644,2.99877,3334.7,3334.1,2.9993]
[1737924215845,2.99877,3334.7,3334.6,0.06273744]
[1737924216047,2.99877,3334.7,3334.1,2.9993]
[1737924216048,3.741881,3334.7,3334.1,2.9993]
[1737924216259,2.99877,3334.7,3334.6,0.06273744]
[1737924216463,2.99877,3334.7,3334.1,2.9993]
[1737924216942,2.99877,3334.7,3334.2,0.06273744]
[1737924221046,0.8214,3334.5,3334.2,0.06273744]
[1737924221388,2.99904,3334.4,3334.3,0.0630642]
[1737924222149,2.99904,3334.4,3333.9,2.99945]
[1737924222350,2.99904,3334.4,3334.0,0.0630642]
[1737924224412,2.99904,3334.4,3333.8,2.99957]
[1737924224693,2.99904,3334.4,3334.1,0.0630642]
[1737924224897,2.99904,3334.4,3333.8,5.99957]
[1737924225185,2.99904,3334.4,3333.8,3.0]
[1737924225394,2.99904,3334.4,3333.9,3.06282508]
[1737924226191,0.8214,3334.5,3333.9,3.06282508]
[1737924226399,3.82036,3334.5,3333.9,3.06282508]
[1737924227201,3.78976,3334.4,3333.9,3.06282508]
[1737924232389,0.7907,3334.4,3333.9,3.06282508]
[1737924232588,0.7907,3334.4,3333.9,4.04443059]
[1737924235787,0.7922,3334.6,3333.9,4.04443059]
[1737924235988,0.7922,3334.9,3334.2,0.7677]
[1737924236188,2.99856,3335.0,3334.4,2.99903]
[1737924236793,2.99856,3335.0,3334.5,0.06338302]
[1737924237190,2.99859,3334.9,3334.5,0.06338302]
[1737924237595,3.745152,3335.0,3334.3,2.99912]
[1737924237911,2.99859,3334.9,3334.6,0.06338302]
[1737924238092,2.99859,3334.9,3334.3,2.99912]
[1737924238607,2.99859,3334.9,3334.4,0.06338302]
[1737924241284,0.88015813,3334.9,3334.4,0.06338302]
[1737924241637,2.99908,3334.4,3334.0,0.7677]
[1737924241921,3.79128,3334.4,3333.8,9.0777]
[1737924242984,3.79128,3334.4,3333.8,3.7677]
[1737924244313,3.79128,3334.4,3333.8,6.76725]
[1737924247680,3.79128,3334.4,3333.8,3.76725]
[1737924248523,0.7922,3334.4,3333.8,3.76725]
[1737924248693,0.7922,3334.4,3333.8,4.443934]
[1737924249525,0.7922,3334.4,3333.9,2.99946]
[1737924249829,6.81102,3334.7,3334.0,2.99937]
[1737924250293,3.81219,3334.7,3334.0,2.99937]
[1737924250478,2.99886,3334.6,3334.0,2.99937]
[1737924250679,2.99886,3334.6,3333.9,2.99946]
[1737924250912,2.99886,3334.6,3333.9,5.99888]
[1737924254833,2.99886,3334.6,3334.0,3.06252501]
[1737924255205,2.99897,3334.5,3334.0,3.06249501]
[1737924262157,3.680086,3334.5,3334.0,0.06313501]
[1737924262359,0.7736,3334.4,3334.0,0.06313501]
[1737924262562,0.7736,3334.4,3333.4,5.31]
[1737924262737,2.99936,3334.1,3333.5,0.7544]
[1737924262933,5.25,3335.0,3332.8,5.31]
[1737924262934,2.99913,3334.3,3333.7,2.99965]
[1737924263166,2.99887,3334.6,3333.9,2.99942]
[1737924263463,5.99781,3334.6,3334.0,0.7544]
[1737924263832,2.99887,3334.6,3334.0,0.7544]
[1737924265572,2.99895,3334.5,3334.0,0.7544]
[1737924266169,2.99887,3334.6,3334.0,0.7544]
[1737924266345,2.99887,3334.6,3334.0,3.75379]
[1737924268592,2.99895,3334.5,3334.0,0.7544]
[1737924269698,2.99895,3334.5,3334.1,0.05926526]
[1737924271392,0.7843,3334.3,3334.1,0.05926526]
[1737924271685,0.7843,3334.3,3333.7,3.76896]
[1737924271920,0.7843,3334.3,3334.2,0.05926526]
[1737924272060,0.7843,3334.3,3333.7,3.76896]
[1737924272389,0.7843,3334.3,3334.2,0.05926526]
[1737924272679,1.5302452,3334.3,3334.2,0.05926526]
[1737924272855,4.5293752,3334.3,3333.7,3.76896]
[1737924273185,3.78343,3334.3,3333.7,3.76896]
[1737924273378,3.78343,3334.3,3333.8,0.05926526]
[1737924273878,3.78343,3334.3,3333.9,0.05932639]
[1737924274377,2.99913,3334.3,3333.7,3.76896]
[1737924274674,0.8318,3334.6,3333.7,0.7693]
[1737924274876,2.99931,3334.1,3333.8,0.05932639]
[1737924275262,2.99931,3334.1,3333.5,3.79693]
[1737924275446,2.99931,3334.1,3333.9,0.05932639]
[1737924275646,2.99931,3334.1,3333.5,0.7971]
[1737924275845,2.9995,3333.9,3333.5,0.7971]
[1737924277552,2.9995,3333.9,3333.3,2.99998]
[1737924277760,2.9995,3333.9,3333.3,3.79708]
[1737924277961,5.99907,3333.9,3333.3,3.79708]
[1737924278282,2.9995,3333.9,3333.3,3.79708]
[1737924279357,2.9995,3333.9,3333.3,4.476806]
[1737924280293,2.99959,3333.8,3333.3,4.476806]
[1737924283118,3.83139,3333.8,3333.3,4.476806]
[1737924284725,3.83139,3333.8,3333.4,0.05770468]
[1737924290631,3.7848,3334.0,3333.4,3.05759468]
[1737924290832,3.7848,3334.0,3333.4,0.66080304]
[1737924291338,3.7848,3334.0,3333.4,3.66066304]
[1737924292521,2.99924,3334.2,3333.4,0.66080304]
[1737924292694,8.24902,3334.5,3333.9,2.99943]
[1737924292895,8.24902,3334.5,3334.0,0.7898]
[1737924293093,3.95002093,3334.9,3334.1,0.02999365]
[1737924293298,0.7854,3334.8,3334.2,2.99915]
[1737924293499,0.7854,3334.8,3334.2,3.05674339]
[1737924295964,3.78408,3334.8,3334.2,3.05674339]
[1737924299655,2.99877,3334.7,3334.3,0.7525]
[1737924299851,2.99868,3334.8,3334.3,0.7525]
[1737924300028,2.99868,3334.8,3334.3,0.8095692]
[1737924300231,2.99877,3334.7,3334.3,0.8095692]
[1737924300552,2.99868,3334.8,3334.3,0.8095692]
[1737924301174,2.99877,3334.7,3334.3,0.8095692]
[1737924301463,2.99868,3334.8,3334.3,0.8095692]
[1737924301648,2.99886,3334.6,3334.3,0.0570692]
[1737924301854,2.99886,3334.6,3334.1,2.99924]
[1737924302058,2.99886,3334.6,3334.4,0.0570692]
[1737924302256,2.99886,3334.6,3334.0,0.7525]
[1737924302469,2.99886,3334.6,3334.5,0.0570692]
[1737924302667,2.99886,3334.6,3334.0,0.7525]
[1737924302851,2.99886,3334.6,3334.5,0.0570692]
[1737924303050,2.99886,3334.6,3334.0,0.7525]
[1737924303253,2.99886,3334.6,3334.5,0.0570692]
[1737924303452,2.99886,3334.6,3334.0,0.7525]
[1737924303671,2.99886,3334.6,3334.5,0.0570692]
[1737924304491,2.99923,3334.2,3333.7,8.30966]
[1737924307184,2.99923,3334.2,3333.8,0.22443963]
[1737924308376,2.9991,3334.4,3333.9,0.22443963]
[1737924309800,2.9991,3334.4,3334.0,0.22443963]
[1737924311420,2.99903,3334.5,3334.0,0.22443963]
[1737924311577,2.99913,3334.3,3334.1,0.22443963]
[1737924313486,2.99913,3334.3,3334.2,0.22443963]
[1737924314714,2.99913,3334.3,3334.2,0.28156991]
[1737924320226,3.77503,3334.3,3334.2,0.28156991]
[1737924320380,3.77503,3334.3,3334.2,0.22443963]
[1737924320718,4.4904703,3334.3,3334.2,0.22443963]
[1737924325330,4.4904703,3334.3,3334.2,0.28168694]
[1737924325889,4.4904703,3334.3,3334.2,0.22443963]
[1737924329396,4.4904703,3334.3,3334.2,0.28177348]
[1737924331013,4.4904703,3334.3,3334.2,0.22443963]
[1737924333631,5.0404703,3334.3,3334.2,0.22443963]
[1737924335061,10.2904703,3334.3,3334.2,0.22443963]
[1737924335450,13.2904703,3334.3,3334.2,0.22443963]
[1737924336551,0.8162,3334.1,3333.3,0.7849]
[1737924336764,2.99968,3333.7,3333.3,0.7849]
[1737924336970,2.99968,3333.7,3333.4,0.05750181]
[1737924337173,2.99968,3333.7,3333.3,0.7849]
[1737924338722,2.99936,3334.1,3333.4,2.99988]
[1737924338927,2.99929,3334.2,3333.0,3.7849]
[1737924339251,2.99929,3334.2,3333.8,0.7849]
[1737924339850,2.99929,3334.2,3333.9,0.05750181]
[1737924350362,0.8162,3334.4,3333.9,0.05750181]
[1737924350533,2.99927,3334.2,3333.9,0.05750181]
[1737924351883,5.25,3334.6,3334.1,2.99925]
[1737924352063,2.99879,3334.7,3334.2,0.82738471]
[1737924354101,2.99888,3334.6,3334.2,0.82738471]
[1737924354254,2.99879,3334.7,3334.2,0.82738471]
[1737924354449,2.99898,3334.5,3334.2,0.82738471]
[1737924355703,2.99879,3334.7,3334.2,0.82738471]
[1737924358387,2.99879,3334.7,3334.2,3.82657471]
[1737924360010,2.99879,3334.7,3334.2,0.82738471]
[1737924375999,2.99879,3334.7,3334.3,0.795]
[1737924376393,2.99879,3334.7,3334.4,0.05706411]
[1737924380717,2.99861,3334.9,3334.4,0.05706411]
[1737924380918,2.99861,3334.9,3334.5,0.795]
[1737924381316,5.99844,3335.1,3334.6,0.05706411]
[1737924381520,9.73793572,3335.1,3334.5,0.795]
[1737924381687,6.73946572,3335.1,3334.6,0.05706411]
[1737924382605,2.99865,3334.9,3334.6,0.05706411]
[1737924383133,2.99865,3334.9,3334.5,0.795]
[1737924383287,2.99865,3334.9,3334.7,0.05706411]
[1737924383488,2.99865,3334.9,3334.5,0.795]
[1737924383733,2.99865,3334.9,3334.6,0.05706411]
[1737924385442,2.9987,3334.8,3334.6,0.05706411]
[1737924386445,2.99877,3334.7,3334.6,0.05706411]
[1737924386743,2.99904,3334.4,3334.2,0.7557]
[1737924389816,2.99904,3334.4,3334.3,0.05701325]
[1737924390253,2.99904,3334.4,3334.2,0.7557]
[1737924390459,2.99904,3334.4,3334.3,0.05701325]
[1737924391262,2.99904,3334.4,3334.2,0.7557]
[1737924391417,2.99904,3334.4,3334.3,0.05701325]
[1737924391924,2.99904,3334.4,3334.3,0.05698272]
[1737924392113,2.99904,3334.4,3333.9,6.1249]
[1737924392312,2.99917,3334.3,3334.0,0.05698272]
[1737924392947,2.99931,3334.1,3334.0,0.05698272]
[1737924395161,2.99919,3334.3,3334.0,0.05698272]
[1737924395917,3.78626,3334.5,3334.0,0.05698272]
[1737924395918,2.99896,3334.5,3334.1,0.7601]
[1737924396124,2.99883,3334.7,3334.2,0.05708449]
[1737924397330,2.99888,3334.6,3334.2,0.05708449]
[1737924406012,5.99782,3334.6,3334.2,0.05708449]
[1737924406518,2.99895,3334.5,3334.2,0.05708449]
[1737924410020,2.99904,3334.4,3334.2,0.05708449]
[1737924410215,2.99913,3334.3,3333.9,6.1391]
[1737924410515,2.99913,3334.3,3334.0,0.05702343]
[1737924411326,2.99931,3334.1,3334.0,0.05702343]
[1737924412426,2.99913,3334.3,3334.0,0.05702343]
[1737924415255,2.99931,3334.1,3334.0,0.05702343]
[1737924415628,2.99931,3334.1,3333.6,0.8291]
[1737924415822,2.99931,3334.1,3334.0,0.05702343]
[1737924416021,2.99931,3334.1,3333.6,0.8291]
[1737924416223,2.99931,3334.1,3334.0,0.05702343]
[1737924416745,2.99931,3334.1,3333.6,0.8291]
[1737924416945,2.99931,3334.1,3333.7,0.05702343]
[1737924417541,5.99833,3334.3,3333.7,0.05702343]
[1737924419445,2.9993,3334.2,3333.7,0.05702343]
[1737924420254,2.99913,3334.3,3333.7,0.05702343]
[1737924420458,2.99933,3334.1,3333.7,0.05702343]
[1737924424440,2.9995,3333.9,3333.7,0.05702343]
[1737924425146,2.99958,3333.8,3333.7,0.05702343]
[1737924425347,2.99958,3333.8,3333.2,0.8314]
[1737924425566,2.99985,3333.5,3333.3,0.05729819]
[1737924425880,2.99985,3333.5,3333.2,0.8314]
[1737924426078,2.99985,3333.5,3333.4,0.05729819]
[1737924426268,2.99985,3333.5,3333.2,0.8314]
[1737924426783,2.99985,3333.5,3333.3,0.05729819]
[1737924427164,2.99985,3333.5,3333.2,0.8314]
[1737924427474,2.99972,3333.7,3333.3,0.05729819]
[1737924427789,2.99972,3333.7,3333.2,0.8314]
[1737924427973,2.99972,3333.7,3333.4,0.05729819]
[1737924428275,2.99972,3333.7,3333.2,0.8314]
[1737924428476,2.99972,3333.7,3333.5,0.05729819]
[1737924428870,2.99972,3333.7,3333.2,0.8314]
[1737924429382,2.99972,3333.7,3333.3,0.05729819]
[1737924429579,2.99965,3333.8,3333.3,0.05729819]
[1737924429580,2.9992,3334.3,3333.4,0.8299]
[1737924429741,2.9992,3334.3,3333.2,0.8299]
[1737924429990,2.9992,3334.3,3333.5,0.8299]
[1737924430194,2.9992,3334.3,3333.8,0.8299]
[1737924430595,2.9992,3334.3,3333.9,0.05729819]
[1737924431126,2.99927,3334.2,3333.9,0.05729819]
[1737924431727,2.9992,3334.3,3333.9,0.05729819]
[1737924431929,2.99936,3334.1,3333.9,0.05729819]
[1737924432235,2.99936,3334.1,3333.5,3.8297]
[1737924432236,2.9994,3334.0,3333.5,3.8297]
[1737924432396,2.99936,3334.1,3334.0,0.05729819]
[1737924432596,2.99936,3334.1,3333.5,3.8297]
[1737924433132,2.99936,3334.1,3333.6,0.05729819]
[1737924437433,2.99936,3334.1,3333.6,0.74599801]
[1737924446559,2.99936,3334.1,3333.6,0.05729819]
[1737924450448,2.9994,3334.0,3333.6,0.05729819]
[1737924450786,2.99936,3334.1,3333.6,0.05729819]
[1737924452688,2.9994,3334.0,3333.6,0.05729819]
[1737924455780,5.99888,3334.0,3333.6,0.05729819]
[1737924456183,2.9994,3334.0,3333.6,0.05729819]
[1737924458258,3.79325,3334.2,3333.6,0.05729819]
[1737924458601,3.79325,3334.2,3333.7,0.05548497]
[1737924458794,0.679231,3334.1,3333.7,0.05548497]
[1737924458957,3.678611,3334.1,3333.5,3.63702819]
[1737924459162,2.99938,3334.1,3333.6,0.05548497]
[1737924459775,2.99941,3334.0,3333.6,0.05548497]
[1737924460399,2.9995,3333.9,3333.6,0.05548497]
[1737924463717,2.99937,3334.1,3333.6,0.05548497]
[1737924467308,2.99937,3334.1,3333.6,3.05522497]
[1737924469869,0.794,3334.2,3333.7,2.99965]
[1737924470066,2.99913,3334.3,3333.8,0.7686]
[1737924470371,2.99913,3334.3,3333.8,0.8241664]
[1737924471913,2.99913,3334.3,3333.8,3.8237164]
[1737924472327,3.76395,3334.5,3333.9,2.99948]
[1737924472478,2.99879,3334.7,3334.1,0.7686]
[1737924472679,2.99879,3334.7,3334.2,2.99919]
[1737924473013,2.99879,3334.7,3334.2,3.0547564]
[1737924473848,2.99879,3334.7,3334.2,0.0555664]
[1737924474118,2.99879,3334.7,3333.6,5.31]
[1737924474119,2.9989,3334.6,3333.6,5.31]
[1737924474316,2.9989,3334.6,3334.3,0.05355132]
[1737924474626,2.9989,3334.6,3333.9,2.9994]
[1737924475196,2.9989,3334.6,3334.0,3.05294132]
[1737924475399,2.99873,3334.8,3334.1,2.99927]
[1737924475580,2.99873,3334.8,3334.0,3.05294132]
[1737924475581,3.675065,3334.7,3334.2,0.05335794]
[1737924476219,3.675065,3334.7,3334.0,2.99939]
[1737924476220,3.675065,3334.7,3334.3,0.05335794]
[1737924476427,3.675065,3334.7,3334.0,2.99939]
[1737924476584,3.675065,3334.7,3334.4,0.05335794]
[1737924477089,3.675065,3334.7,3334.5,0.05335794]
[1737924477291,0.6673695,3334.6,3334.5,0.05335794]
[1737924477482,0.6673695,3334.6,3334.2,0.7587]
[1737924477678,2.99886,3334.6,3334.5,0.05335286]
[1737924477893,2.99886,3334.6,3334.2,0.7587]
[1737924478584,2.99886,3334.6,3334.3,0.05335286]
[1737924478783,2.99886,3334.6,3334.2,0.7587]
[1737924478988,2.99886,3334.6,3334.3,0.05335286]
[1737924479189,3.598629,3334.6,3334.3,0.05335286]
[1737924479391,3.598629,3334.6,3334.2,0.7587]
[1737924479884,3.598629,3334.6,3334.3,0.05335286]
[1737924480086,3.598629,3334.6,3334.2,0.7587]
[1737924480288,2.99886,3334.6,3334.4,0.05335286]
[1737924480488,2.99886,3334.6,3334.2,0.7587]
[1737924480688,2.99886,3334.6,3334.5,0.05335286]
[1737924480944,2.99886,3334.6,3334.2,0.7587]
[1737924481107,2.99886,3334.6,3334.5,0.05335286]
[1737924481307,2.99886,3334.6,3334.2,0.7587]
[1737924481308,2.99895,3334.5,3334.2,0.7587]
[1737924481911,2.99895,3334.5,3334.3,0.05336812]
[1737924482114,2.99895,3334.5,3334.2,0.7587]
[1737924482313,2.99895,3334.5,3334.4,0.05336812]
[1737924482524,2.99895,3334.5,3334.2,0.7587]
[1737924482689,2.99895,3334.5,3334.4,0.05336812]
[1737924483022,2.99895,3334.5,3334.2,0.7587]
[1737924483511,2.99895,3334.5,3334.3,0.05336812]
[1737924483823,2.99895,3334.5,3334.4,0.05336812]
[1737924484523,2.99895,3334.5,3334.2,0.7587]
[1737924484726,2.99895,3334.5,3334.4,0.05336812]
[1737924484924,2.99895,3334.5,3334.2,0.7587]
[1737924485129,2.99895,3334.5,3334.4,0.05336812]
[1737924485325,2.99895,3334.5,3334.2,0.7587]
[1737924485620,2.99895,3334.5,3334.4,0.05336812]
[1737924485826,2.99895,3334.5,3334.2,0.7587]
[1737924486403,2.99895,3334.5,3334.3,0.05336812]
[1737924486605,2.99895,3334.5,3334.2,0.7587]
[1737924486932,2.99895,3334.5,3334.3,0.05336812]
[1737924487243,2.99895,3334.5,3334.2,0.7587]
[1737924487409,2.99895,3334.5,3334.4,0.05336812]
[1737924487608,2.99895,3334.5,3334.2,0.7587]
[1737924487803,5.99798,3334.5,3334.3,0.05336812]
[1737924488243,2.99895,3334.5,3334.4,0.05336812]
[1737924488440,2.99895,3334.5,3334.2,0.7587]
[1737924488651,5.99798,3334.5,3334.2,0.7587]
[1737924489148,2.99904,3334.4,3334.3,0.05330705]
[1737924489445,2.99902,3334.5,3334.2,0.7587]
[1737924489756,2.99902,3334.5,3334.3,0.05330705]
[1737924490110,2.99902,3334.5,3334.2,0.7587]
[1737924490326,2.99902,3334.5,3334.4,0.05331214]
[1737924490807,2.99902,3334.5,3334.2,0.7587]
[1737924491141,2.99902,3334.5,3334.3,0.05331214]
[1737924491535,2.99902,3334.5,3334.2,0.7587]
[1737924491735,2.99902,3334.5,3334.4,0.05331214]
[1737924491908,2.99902,3334.5,3334.2,0.7587]
[1737924492106,2.99902,3334.5,3334.4,0.05331214]
[1737924492309,2.99902,3334.5,3334.2,0.7587]
[1737924492509,2.99902,3334.5,3334.4,0.05331214]
[1737924492755,2.99902,3334.5,3334.2,0.7587]
[1737924492905,2.99902,3334.5,3334.4,0.05331214]
[1737924493113,2.99902,3334.5,3334.2,0.7587]
[1737924493607,2.99902,3334.5,3334.3,0.05331214]
[1737924493813,2.99902,3334.5,3334.2,0.7587]
[1737924494016,2.99902,3334.5,3334.3,0.05331214]
[1737924494215,2.99902,3334.5,3334.2,0.7587]
[1737924494438,2.99904,3334.4,3334.2,0.7587]
[1737924494642,2.99904,3334.4,3334.3,0.05331214]
[1737924495017,2.99904,3334.4,3334.2,0.7587]
[1737924495226,2.99904,3334.4,3334.3,0.05331214]
[1737924495451,2.99904,3334.4,3334.2,0.7587]
[1737924495838,2.99904,3334.4,3334.3,0.05331214]
[1737924496149,2.99904,3334.4,3334.2,0.7587]
[1737924496351,2.99904,3334.4,3334.3,0.05331214]
[1737924496752,2.99904,3334.4,3334.2,0.7587]
[1737924496955,2.99904,3334.4,3334.3,0.05331214]
[1737924497254,2.99904,3334.4,3334.2,0.7587]
[1737924497552,2.99904,3334.4,3334.3,0.05331214]
[1737924498230,2.99904,3334.4,3334.2,0.7587]
[1737924498631,2.99904,3334.4,3334.3,0.05331214]
[1737924499248,2.99888,3334.6,3334.2,0.7587]
[1737924499456,2.99888,3334.6,3334.3,0.05331214]
[1737924499756,2.99888,3334.6,3334.2,0.7587]
[1737924499959,2.99888,3334.6,3334.4,0.05331214]
[1737924500124,2.99888,3334.6,3334.3,0.05329688]
[1737924500417,2.99896,3334.5,3334.2,0.7587]
[1737924501042,2.99896,3334.5,3334.3,0.05329688]
[1737924501256,2.99896,3334.5,3334.2,0.7587]
[1737924501820,2.99896,3334.5,3334.3,0.05329688]
[1737924502020,2.99896,3334.5,3334.2,0.7587]
[1737924502459,2.99896,3334.5,3334.3,0.05329688]
[1737924502625,2.99896,3334.5,3334.2,0.7587]
[1737924502960,2.99896,3334.5,3334.3,0.05329688]
[1737924503325,2.99896,3334.5,3334.2,0.7587]
[1737924503553,2.99896,3334.5,3334.4,0.05329688]
[1737924503758,2.99896,3334.5,3334.2,0.7587]
[1737924504057,2.99896,3334.5,3334.4,0.05329688]
[1737924504262,2.99896,3334.5,3334.3,0.05329688]
[1737924504442,2.99896,3334.5,3334.2,0.7587]
[1737924504847,2.99896,3334.5,3334.3,0.05329688]
[1737924505058,5.25,3335.8,3334.3,0.05329688]
[1737924505362,5.25,3335.8,3334.0,2.81537204]
[1737924505363,2.9983,3335.3,3334.6,3.77655]
[1737924505656,2.9983,3335.3,3334.7,0.05317476]
[1737924506260,2.99832,3335.2,3334.7,0.05317476]
[1737924506757,2.99868,3334.8,3334.7,0.05317476]
[1737924507253,2.99868,3334.8,3334.3,0.7777]
[1737924507461,2.99868,3334.8,3334.7,0.05096816]
[1737924507660,2.99868,3334.8,3334.3,0.7777]